Workbook

Sheet Welcome!
C16: SIMplified Black soldier fly Approach - COST MODEL
C18: This cost model is based on: The SIMBA Grow-Out Guide¹ and The SIMBA Reproduction Guide². Accordingly, this cost model is divided into two parts: Grow-Out Unit and Reproduction Unit, estimating cost and revenue based on one year of operation. Disclaimer: Eawag and the authors assume no responsibility for errors or omissions in this document or for any actions taken based on the information provided. Eawag and the authors are not liable for any damages arising from the use of this document.
C23: 1. | D23: How to read and use this model:
C24: a. | D24: Make sure to "Enable Content/Macros" when opening this model in excel.
C25: b. | D25: yellow cells | E25: indicates a default value. If the value does not match your case/facility - you have the option to change it
C26: c. | D26: orange cells | E26: have no default value. Here you must select an option from the drop-down menu in the cell.
C29: 2. | D29: What currency do you want the cost model in? | H29: Currency: | I29: EUR | J29: =INDEX(Currency_World[],MATCH(I29,INDEX(Currency_World[],0,2),0),3) -> Euro
H30: 1 EUR = | I30: 1 | J30: =I29 -> EUR
C32: =IF(I29="EUR","","* Please change the currency rate to EUR to ensure that the default values in this model, which are currently in EUR, are correctly converted to your selected currency.") -> 
C34: 3. | D34: What kind of SIMBA Unit you have/ want to set up?
E37: Cost model for Grow-out Unit*:
C39: *Grow-out unit: has the purpose to find a balance between optimal growth of the larvae for harvesting, production of frass for use as soil amendment and organic waste reduction. This all, while keeping the labour effort as low as possible. The grow-out unit will include the waste pre-processing, treatment of waste and product harvesting step.
E41: Cost model for Reproduction Unit*:
C43: *Reproduction unit: has the purpose to create optimal conditions to maintain the lifecycle of BSF including: BSF pupation, mating, laying of eggs, hatching and first days of larvae feeding while keeping the labour effort as low as possible.
C45: The cost model is seperating the cost related to the Reproduction unit and Grow-out unit. Go through the reproduction unit first, continue with the grow out unit, and then you will find a combined results at the end.
C50: Reproduction unit: has the purpose to create optimal conditions to maintain the lifecycle of BSF including: BSF pupation, mating, laying of eggs, hatching and first days of larvae feeding while keeping the labour effort as low as possible.
C52: Grow-Out Unit: has the purpose to find a balance between optimal growth of the larvae for harvesting, production of frass for use as soil amendment and organic waste reduction. This all, while keeping the labour effort as low as possible. The grow-out unit will include the waste pre-processing, treatment of waste and product harvesting step.
C54: 1. Diener, S., Dortmans, B,. Peguero, D., & Zurbrügg, C. (2025) SIMPLIFIED BLACK SOLDIER FLY APPROACH (SIMBA) – GROW-OUT UNIT: STANDARD OPERATIONS PROCEDURE
C55: 2. Diener, S., Dortmans, B,. Peguero, D., & Zurbrügg, C. (2025) SIMPLIFIED BLACK SOLDIER FLY APPROACH (SIMBA) – REPRODUCTION UNIT: STANDARD OPERATIONS PROCEDURE

Sheet Reproduction(R)
C14: Reproduction Unit
C16: This page provides an overview of your investment, operational expenses and revenues related to the reproduction unit. Default values are based on the SIMBA Reproduction Guide², which aims to treat 250 kg of waste per week. To increase accuracy, please ensure that the performance indicators and default values below are aligned with values from your facility and your treatment capacity.
C21: Default values in yellow cells can be changed
C23: 1. How many kg waste do you want the larva to be able to treat per week? | F23: 250
C25: A | D25: Performance Indicators | E25: Values from SIMBA guide | F25: Your values
C26: 1 | D26: Egg division
D27: gram eggs per week | E27: =F23/(25/3) -> 30 | F27: =E27 -> 30
D28: gram 7-DOL per week | E28: =E43/E30 -> 1258.741259 | F28: =E28 -> 1258.741259
D29: # egg equals 1 gram | E29: =E41/E27 -> 40000 | F29: =E29 -> 40000
D30: # 7-DOL equals 1 gram | E30: =286 -> 286 | F30: =E30 -> 286
C31: 2 | D31: Larva division
D32: # 7-DOL retained for Reproduction per week | E32: =E43*(1/6) -> 60000 | F32: =E32 -> 60000
D33: Kg frass harvested per week | E33: =E48*(E32/E49) -> 20 | F33: =E33 -> 20
D34: # Prepupa per week | E34: =E32*(2/3) -> 40000 | F34: =E34 -> 40000
D35: # Pupae harvested per week | E35: =E34 -> 40000 | F35: =E35 -> 40000
C36: 3 | D36: Adult division
D37: # Flies per week | E37: =E35*(1/2) -> 20000 | F37: 30000
D39: BSF Performance | E39: Values based on guide² | F39: Your facility
C40: 1 | D40: Egg unit
D41: # eggs per week | E41: =F23*4800 -> 1200000 | F41: =F27*F29 -> 1200000
D42: # eggs / fly | E42: =E41/E37 -> 60 | F42: =F41/F37 -> 40
D43: # 7-DOL per week | E43: =E41*0.3 -> 360000 | F43: =F28*F30 -> 360000
D44: Hatchling rate | E44: =E43/E41 -> 0.3 | F44: =F43/F41 -> 0.3
C45: 2 | D45: Larva division
D46: Larva retained for Reproduction | E46: =E32/E43 -> 0.1666666667 | F46: =F32/F43 -> 0.1666666667
D47: # 7-DOL Larva avaliable for sale per week | E47: =E43-E32 -> 300000 | F47: =F43-F32 -> 300000
D48: Bioconversion Rate: Frass | E48: 0.4 | F48: =F33/(F32/F49) -> 0.4
D49: # 7-DOL / kg substrate | E49: =E47/F23 -> 1200 | F49: =F47/F23 -> 1200
D50: pupa / 7-DOL | E50: =E35/E32 -> 0.6666666667 | F50: =F35/F32 -> 0.6666666667
C51: 3 | D51: Adult division
D52: # fly / pupa | E52: =E37/E35 -> 0.5 | F52: =F37/F35 -> 0.75
C55: Profit after one year | E55: ='Welcome!'!I29 -> EUR | F55: Details
C56: A-C | D56: Investment Costs | E56: =-'R. Investment Costs'!H65 -> -1740.27
C57: D | D57: Wear and Tear Cost | E57: =-'R. Investment Costs'!H75 -> -149.404
C58: E-G | D58: Operating Costs | E58: =-'R. Operating Costs'!G42 -> -17.4027
C59: H | D59: Sale Revenue | E59: ='R. Revenue'!G28 -> 795.0545455
D60: Profit including investment cost | E60: =SUM(E56:E59) -> -1112.022155
D61: Profit excluding investment cost* | E61: =SUM(E57:E59) -> 628.2478455
C62: =IF(AND('R. Operating Costs'!G20=0,'R. Operating Costs'!G29=0), "Mark; this a rough estimate, with assumtions like; no substrate costs (E) and no employee costs (F). Adjust default values (under details)."&" * Since investment cost will only be a cost the first year, profit excluding investment costs will be a more realistic number of your profit after the first year.", "Adjust values under details. * Since investment cost will only be a cost the first year, profit excluding investment costs will be a more realistic number of your profit after the first year.") -> Mark; this a rough estimate, with assumtions like; no substrate costs (E) and no employee costs (F). Adjust default values (under details). * Since investment cost will only be a cost the first year, profit excluding investment costs will be a more realistic number of your profit after the first year.
C65: 2. Diener, S., Dortmans, B,. Peguero, D., & Zurbrügg, C. (2025) SIMPLIFIED BLACK SOLDIER FLY APPROACH (SIMBA) – REPRODUCTION UNIT: STANDARD OPERATIONS PROCEDURE

Sheet R. Investment Costs
C4: Investment Costs | F4: Total: | G4: =H65 -> 1740.27 | H4: ='Welcome!'!I29 -> EUR
C6: Investment costs refer to the initial one-time expenditure needed to set up the facility. All yellow cells show a default value. These default values are based on the values from the SIMBA Reproduction Guide².
C9: If you have more accurate data, change the default values in the yellow cells to represent your facility.
C12: A | D12: Building and Civil Works | E12: Amount* | F12: ='Welcome!'!I29&" / unit*" -> EUR / unit* | G12: Total* | H12: Total | I12: Lifetime(years) | J12: Dep. per year
C13: 1 | D13: Material | G13: =SUM(G14:G24) -> 814.26 | H13: =IF('Reproduction(R)'!F23=250,G13,0) -> 814.26 | I13: 30 | J13: =H13/I13 -> 27.142
C14: 1.1 | D14: Cement | E14: 23 | F14: =8.85*'Welcome!'!I30 -> 8.85 | G14: =E14*F14 -> 203.55
C15: 1.2 | D15: Bricks | E15: 6500 | F15: =0.01*'Welcome!'!I30 -> 0.01 | G15: =E15*F15 -> 65
C16: 1.3 | D16: River sand (ton) | E16: 6 | F16: =3.69*'Welcome!'!I30 -> 3.69 | G16: =E16*F16 -> 22.14
C17: 1.4 | D17: Iron sheets | E17: 26 | F17: =10*'Welcome!'!I30 -> 10 | G17: =E17*F17 -> 260
C18: 1.5 | D18: Roofing nails (kgs) | E18: 5 | F18: =1.87*'Welcome!'!I30 -> 1.87 | G18: 9.35
C19: 1.6 | D19: Wire nails (kgs) | E19: 14 | F19: =1.8*'Welcome!'!I30 -> 1.8 | G19: 25.2
C20: 1.7 | D20: Timber Guard (liter) | E20: 2 | F20: =1.35*'Welcome!'!I30 -> 1.35 | G20: 2.7
C21: 1.8 | D21: Wire (rows) | E21: 2 | F21: =0.98*'Welcome!'!I30 -> 0.98 | G21: 1.96
C22: 1.9 | D22: Timber | E22: 54 | F22: =2.85*'Welcome!'!I30 -> 2.85 | G22: 153.9
C23: 1.10 | D23: Timber for cage frame | E23: 22 | F23: =2.7*'Welcome!'!I30 -> 2.7 | G23: 59.4
C24: 1.11 | D24: Wire nails (kgs) | E24: 7 | F24: =1.58*'Welcome!'!I30 -> 1.58 | G24: 11.06
C25: 2 | D25: Labor cost | G25: =G26 -> 22.13 | H25: =IF('Reproduction(R)'!F23=250,G25,0) -> 22.13 | I25: - | J25: -
C26: 2.1 | D26: Labor charge | E26: 1 | F26: =22.13*'Welcome!'!I30 -> 22.13 | G26: =E26*F26 -> 22.13
C27: 3 | D27: Other | G27: =SUM(G28:G29) -> 144.26 | H27: =IF('Reproduction(R)'!F23=250,G27,0) -> 144.26 | I27: 30 | J27: =IFERROR(H27/I27,0) -> 4.808666667
C28: 3.1 | D28: Transportation (trips) | E28: 2 | F28: =22.13*'Welcome!'!I30 -> 22.13 | G28: =E28*F28 -> 44.26
C29: 3.2 | D29: Other | E29: 1 | F29: =100*'Welcome!'!I30 -> 100 | G29: =E29*F29 -> 100
C30: A | D30: Total building and civil works | F30: 0 | H30: =SUM(H13:H29) -> 980.65 | J30: =SUM(J13:J28) -> 31.95066667
C31: ="*Shows an example facilty on 30 m². Based on the SIMBA guide your unit will need "&(30/250*'Reproduction(R)'!F23&" m² of roofed space. Adjust or fill in the total cost for Material, Labor cost, and other costs in your facility.") -> *Shows an example facilty on 30 m². Based on the SIMBA guide your unit will need 30 m² of roofed space. Adjust or fill in the total cost for Material, Labor cost, and other costs in your facility.
C33: B | D33: Equipment | E33: Amount | F33: Your Amount | G33: ='Welcome!'!I29&" / unit" -> EUR / unit | H33: Total | I33: Lifetime(years) | J33: Dep. per year
C34: 1 | D34: Egg division
C35: 1.1 | D35: Hatchling box (40x60cm) | E35: =ROUNDUP(('Reproduction(R)'!F43/480000),0)+1 -> 2 | F35: =E35 -> 2 | G35: =2.94*'Welcome!'!I30 -> 2.94 | H35: =F35*G35 -> 5.88 | I35: 5 | J35: =IFERROR(H35/I35,0) -> 1.176
C36: 1.2 | D36: Hatchling shower rack | E36: =ROUNDUP('Reproduction(R)'!E27/1200000*1,0) -> 1 | F36: =E36 -> 1 | G36: =10*'Welcome!'!I30 -> 10 | H36: =F36*G36 -> 10 | I36: 5 | J36: =IFERROR(H36/I36,0) -> 2
C37: 1.3 | D37: Click counter | E37: 1 | F37: 1 | G37: =6*'Welcome!'!I30 -> 6 | H37: 6 | I37: 5 | J37: 1.2
C38: 1.4 | D38: Tweezer | E38: 1 | F38: =E38 -> 1 | G38: =1*'Welcome!'!I30 -> 1 | H38: 1 | I38: 5 | J38: 0.2
C39: 1.5 | D39: Spoon | E39: 1 | F39: =E39 -> 1 | G39: =2*'Welcome!'!I30 -> 2 | H39: =G39*F39 -> 2 | I39: 2 | J39: 1
C40: 1.6 | D40: Plastic bottle cap | E40: 1 | F40: 1 | G40: =0.5*'Welcome!'!I30 -> 0.5 | H40: 0.5 | I40: 1 | J40: =IFERROR(H40/I40,0) -> 0.5
C41: 1.7 | D41: Plate | E41: 1 | F41: 1 | G41: =1*'Welcome!'!I30 -> 1 | H41: 1 | I41: 3 | J41: 0.3333333333
C42: 1.8 | D42: Sieve (2 mm) * | E42: 0 | F42: 0 | G42: =5*'Welcome!'!I30 -> 5 | H42: =G42*F42 -> 0 | I42: 5 | J42: 0
C43: 1.9 | D43: Scale (min weight 0.1gm) | E43: 1 | F43: =E43 -> 1 | G43: =18*'Welcome!'!I30 -> 18 | H43: =G43*F43 -> 18 | I43: 8 | J43: 2.25
C44: 2 | D44: Larva division
C45: 2.1 | D45: Nursery container (40x60cm) | E45: =('Reproduction(R)'!F32/10000)*5 -> 30 | F45: =E45 -> 30 | G45: =2.94*'Welcome!'!I30 -> 2.94 | H45: =F45*G45 -> 88.2 | I45: 5 | J45: =IFERROR(H45/I45,0) -> 17.64
C46: 2.2 | D46: Collection container | E46: =E45 -> 30 | F46: 30 | G46: =2.94*'Welcome!'!I30 -> 2.94 | H46: =F46*G46 -> 88.2 | I46: 5 | J46: =IFERROR(H46/I46,0) -> 17.64
C47: 2.3 | D47: Pupation container (40x60cm) | E47: =ROUNDUP('Reproduction(R)'!F34/20000*1,0) -> 2 | F47: 2 | G47: =2.94*'Welcome!'!I30 -> 2.94 | H47: 5.88 | I47: 5 | J47: 1.176
C48: 2.4 | D48: Scale (min weight 5-100kg) | E48: =1 -> 1 | F48: =E48 -> 1 | G48: =58.8*'Welcome!'!I30 -> 58.8 | H48: =G48*F48 -> 58.8 | I48: 8 | J48: 7.35
C49: 3 | D49: Adult division
C50: 3.1 | D50: Love cage (75x75x150 cm) | E50: =ROUNDUP('Reproduction(R)'!E35/20000*3,0) -> 6 | F50: =E50 -> 6 | G50: =50*'Welcome!'!I30 -> 50 | H50: =F50*G50 -> 300 | I50: 8 | J50: =IFERROR(H50/I50,0) -> 37.5
C51: 3.2 | D51: Love cage hanger | E51: =E50 -> 6 | F51: =E51 -> 6 | G51: =2.24*'Welcome!'!I30 -> 2.24 | H51: =F51*G51 -> 13.44 | I51: 10 | J51: =IFERROR(H51/I51,0) -> 1.344
C52: 3.3 | D52: Table (80x160 cm) | E52: =E50/2 -> 3 | F52: =E52 -> 3 | G52: 20 | H52: =G52*F52 -> 60 | I52: 10 | J52: 6
C53: 3.4 | D53: Eclosion box (20x30cm) | E53: =ROUND('Reproduction(R)'!F35/10000,0) -> 4 | F53: =E53 -> 4 | G53: =2.8*'Welcome!'!I30 -> 2.8 | H53: =F53*G53 -> 11.2 | I53: 5 | J53: 2.24
C54: 3.5 | D54: Eggies | E54: =E50*6 -> 36 | F54: =E54 -> 36 | G54: =0.49*'Welcome!'!I30 -> 0.49 | H54: =F54*G54 -> 17.64 | I54: 5 | J54: 3.528
A55: 3.6 | C55: 3.6 | D55: Attractant container (20x30cm) | E55: =E50 -> 6 | F55: 6 | G55: =2.94*'Welcome!'!I30 -> 2.94 | H55: 17.64 | I55: 5 | J55: 3.528
C56: 3.7 | D56: Water container, cotton cloth (20x10cm) | E56: =E50 -> 6 | F56: 6 | G56: =3.24*'Welcome!'!I30 -> 3.24 | H56: 19.44 | I56: 5 | J56: 3.888
C57: 3.8 | D57: Shade box | E57: =E50 -> 6 | F57: =E57 -> 6 | G57: =5.8*'Welcome!'!I30 -> 5.8 | H57: =G57*F57 -> 34.8 | I57: 5 | J57: 6.96
C58: 4 | D58: General task
C59: 4.1 | D59: Cleaning equipment (mopping cloth, broom, sanitizer, detergent etc.) | E59: 1 | F59: =E59 -> 1 | G59: 0 | H59: =F59*G59 -> 0 | I59: 2 | J59: =IFERROR(H59/I59,0) -> 0
C60: 4.2 | D60: Office equipment and material | E60: 1 | F60: =E60 -> 1 | G60: 0 | H60: =G60*F60 -> 0 | I60: 2 | J60: =IFERROR(H60/I60,0) -> 0
C61: 4.3 | D61: Other (dust bin, mug, bucket, etc) | E61: 1 | F61: =E61 -> 1 | G61: 0 | H61: =G61*F61 -> 0 | I61: 2 | J61: 0
C62: B | D62: Total equipment | H62: =SUM(H34:H61) -> 759.62 | J62: =SUM(J35:J61) -> 117.4533333
C63: * Not required to operate a SIMBA reproduciton facility.
C65: A:B | D65: Total Investment Costs | H65: =H30+H62 -> 1740.27 | J65: =J30+J62 -> 149.404
C68: Wear and Tear Cost | F68: Total: | G68: =H75 -> 149.404 | H68: ='Welcome!'!I29&" / year" -> EUR / year
C70: This shows depreciation cost which accounts for the wear and tear (lifetime) of the investment products. Depreciation is calculated linear over lifetime. Click on "show calculations" to see default values in column I. Yellow cells with "lifetime" show a default value for each investment. If you wish, change the default values to better reflect your facility.
D72: Wear and tear | H72: ='Welcome!'!I29&" / year" -> EUR / year
D73: Building | H73: =J30 -> 31.95066667
D74: Equipment | H74: =J62 -> 117.4533333
C75: C | D75: Total Wear and Tear Cost per year | H75: =J65 -> 149.404

Sheet R. Operating Costs
C3: Operating cost | E3: Total: | F3: =G42 -> 17.4027 | G3: ='Welcome!'!I29&"/ year" -> EUR/ year
C5: Operating costs are all your weekly expenses required to operate a Reproduction Unit. All yellow cells show a default value. These default values are calculated based on the values from the SIMBA Reproduction Guide². You can change the default values to represent your facility more accurately.
C9: If you have more accurate data, change the default values in the yellow cells to represent your facility.
C11: E | D11: Feed Cost | F11: Weekly | G11: Yearly
C12: 1 | D12: Feed in kg | E12: Weekly (default value)
C13: 1.1 | D13: Feed 0-7-DOL (e.g., chicken feed) | E13: =6/1000*'Reproduction(R)'!F23 -> 1.5 | F13: =E13 -> 1.5 | G13: =F13*52 -> 78
C14: 1.2 | D14: Waste substrate 7-DOL-Prepupae (e.g. foodwaste) | E14: ='Reproduction(R)'!F32/'Reproduction(R)'!F49 -> 50 | F14: =E14 -> 50 | G14: =F14*52 -> 2600
C15: 1.3 | D15: Additives (e.g. saw dust or rice husk) | E15: 0 | F15: 0 | G15: 0
C16: 2 | D16: =IF(G20=0,"Feed cost *","Feed Cost") -> Feed cost * | E16: ='Welcome!'!I29&" / kg" -> EUR / kg
C17: 2.1 | D17: Feed 0-7-DOL | E17: 0 | F17: =E13*E17 -> 0 | G17: =G13*E17 -> 0
C18: 2.2 | D18: Waste substrate 7-DOL-Prepupae (e.g. foodwaste) | E18: 0 | F18: =E14*E18 -> 0 | G18: =G14*E18 -> 0
C19: 2.3 | D19: Additives (e.g. saw dust or rice husk) | E19: 0 | F19: =E19*E15 -> 0 | G19: =E19*G15 -> 0
C20: E | D20: Total feed cost | F20: =F17+F18 -> 0 | G20: =G17+G18 -> 0
C21: =IF(G20=0,"*This model assumes that you are using your own substrate (cost = 0). If you buy substrate, please enter price per kilo.","") -> *This model assumes that you are using your own substrate (cost = 0). If you buy substrate, please enter price per kilo.
C23: F | D23: =IF(G29=0,"Labor Cost* ","Labor Cost") -> Labor Cost* | F23: Weekly | G23: Yearly
D24: Number of employees | E24: 1
D25: Salary per h | E25: 0
D26: Working hours | F26: 16 | G26: =F26*52 -> 832
C27: 1 | D27: Salary | F27: =F26*E24*E25 -> 0 | G27: =E24*G26*E25 -> 0
C28: 2 | D28: Other | F28: 0 | G28: =F28*52 -> 0
C29: F | D29: Total labor cost | F29: =F27+F28 -> 0 | G29: =G27+G28 -> 0
C30: =IF(G29=0,"*This model assumes 0 labor cost, if you are hiring, adjust the yellow cells accordingly."," ") -> *This model assumes 0 labor cost, if you are hiring, adjust the yellow cells accordingly.
C32: H | D32: Other Cost | F32: Weekly | G32: Yearly
C33: 1 | D33: Repairs and Maintenance* | F33: =1%*('R. Investment Costs'!H65)/52 -> 0.3346673077 | G33: =F33*52 -> 17.4027
C34: 2 | D34: Utilities (Water, Electricity, Fuel) | F34: 0 | G34: =F34*52 -> 0
C35: 3 | D35: Transportation Cost | F35: 0 | G35: 0
C36: 4 | D36: Marketing Cost | F36: 0 | G36: =F36*52 -> 0
C37: 5 | D37: Consumables | F37: =G37/52 -> 0 | G37: 0
C38: 5 | D38: Other | F38: 0 | G38: 0
C39: H | D39: Total other cost | F39: =SUM(F33:F38) -> 0.3346673077 | G39: =SUM(G33:G38) -> 17.4027
C40: * The default value is calculated as 1% of the investments cost
F41: Weekly | G41: Yearly
C42: E:H | D42: Total Operating Costs | F42: =F20+F29+F39 -> 0.3346673077 | G42: =G20+G29+G39 -> 17.4027

Sheet R. Revenue
C3: Sale revenue | E3: Total: | F3: =G28 -> 795.0545455 | G3: ='Welcome!'!I29&"/ year" -> EUR/ year
C5: ="Sales revenue shows the income you will generate from your reproduction unit; selling fresh 7-dol and/or remaining frass. Adjust the sales prices ("&'Welcome!'!J30&" /kg) in the yellow cells to make the calculation more accurate for your case." -> Sales revenue shows the income you will generate from your reproduction unit; selling fresh 7-dol and/or remaining frass. Adjust the sales prices (EUR /kg) in the yellow cells to make the calculation more accurate for your case.
C8: If you have more accurate data, change the default values in the yellow cells to represent your facility.
C10: H | D10: 7-DOL* | F10: Weekly | G10: Yearly
C11: 1 | D11: 7-DOL in gram
C12: 1.1 | D12: gram 7-DOL harvested | F12: ='Reproduction(R)'!F47/'Reproduction(R)'!F30 -> 1048.951049 | G12: =F12*52 -> 54545.45455
C13: 1.2 | D13: 7-DOL sold | F13: =F12 -> 1048.951049 | G13: =F13*52 -> 54545.45455
C14: 2 | D14: Sale price 7-DOL
C15: 2.1 | D15: ='Welcome!'!I29&" / gram 7-DOL" -> EUR / gram 7-DOL | E15: =0.01*'Welcome!'!I30 -> 0.01
C16: H | D16: Total Revenue: 7-DOL | F16: =E15*F13 -> 10.48951049 | G16: =E15*G13 -> 545.4545455
C17: *If you use the 7-DOL in your own reproduction unit; set sale price to 0.
C19: I | D19: Frass from 7-dol | F19: Weekly | G19: Yearly
C20: 1 | D20: Frass in kg
C21: 1.1 | D21: Frass harvested | F21: 20 | G21: =F21*52 -> 1040
C22: 1.2 | D22: Frass sold | F22: =F21 -> 20 | G22: =F22*52 -> 1040
C23: 2 | D23: Sale price frass
C24: 2.1 | D24: ='Welcome!'!I29&" / kg frass" -> EUR / kg frass | E24: =0.24*'Welcome!'!I30 -> 0.24
C25: I | D25: Total Revenue: Frass | F25: =E24*F22 -> 4.8 | G25: =E24*G22 -> 249.6
C26: =IF(G25=0,"* This model assume that 0 kg of frass is sold. If you sell frass pleace adjust accordingly.","") -> 
C28: H:I | D28: Total Sales Revenue | F28: =F16+F25 -> 15.28951049 | G28: =G16+G25 -> 795.0545455
C32: If you are also operating a Grow-Out unit, "Continue to Grow-Out Unit, if not, go "Back" and see your results for your reproduction Unit.

Sheet Growout (GO)
C12: Growout Unit
C14: This model is based on the Growout SIMBA Guide¹, which aims to treat 50 kg of waste per week. Select options in all the empty orange cells to get an overview of the profit for your Growout Unit.
C17: Default value - Optional to change | E17: Select option
C19: 1. How many kg waste (substrate) will you treat per week? | F19: 50
C21: 2. What kind of substrate will you use? | E21: Substrate | F21: Percentage
C22: =IF(OR(E24="Other", E23="Other", E22="Other"), "Default bioconversion rate for 'Other' is 10% for larvae, and 30% for frass. Change total bioconversion rate under Calculation for BSF below.", "") ->  | E22: Food waste | F22: 1
E25: Sum | F25: =SUM(F22:F24) -> 1
E26: =IF(F25=100%,"","The sum has to be 100%") -> 
C27: Received products (per week)
C28: ="By treating "&F19&" kg of your substrate you will receive:" -> By treating 50 kg of your substrate you will receive: | E28: =IF(F25=100%,""&ROUND(F73,1)&" kg ","") -> 8 kg | F28: fresh larvae
E29: =IF(F25=100%," "&ROUND(F78,0)&" kg ","") -> 21 kg | F29: frass
C31: 3. Do you want to sell any of your products? | E31: Yes
C33: 4. How much of your product do you want to sell?
E34: Kg sold per week | F34: Kg kept per week
C35: Fresh larvae | E35: =E73*D35 -> 0 | F35: =E73-E35 -> 8.02655
C36: Frass | E36: =E78*D36 -> 0 | F36: =E78-E36 -> 21.1225
C39: Profit after one year | E39: ='Welcome!'!I29 -> EUR | F39: Details
C40: A:B | D40: Investment Costs | E40: =-'GO. Investment Costs'!I40 -> -238.7
C41: C | D41: Wear and Tear Costs | E41: =-'GO. Investment Costs'!I50 -> -60.04285714
C42: D:G | D42: Operating Costs | E42: =-'GO. Operating Costs'!G52 -> -111.4779091
C43: H:I | D43: Sale Revenue | E43: ='GO. Revenue'!G27 -> 0
C44: J:K | D44: Saved Costs | E44: ='GO. Revenue'!G55 -> 735.248878
D45: Profit including investment costs | E45: =SUM(E40:E44) -> 325.0281118
D46: Profit excluding investment costs* | E46: =SUM(E41:E44) -> 563.7281118
C47: =IF(AND('GO. Operating Costs'!G39=0, 'GO. Investment Costs'!I13=0, 'GO. Operating Costs'!G29=0), "Mark; this a rough estimate, with assumtions like; no building costs (A), no substrate costs (E), 7DOL is bought (D), and no employee costs (F). Adjust default values (under details)."&"* Since investment cost will only be a cost the first year, profit excluding investment costs will be a more realistic number of your profit after the first year.", "Adjust values under details. * Since investment cost will only be a cost the first year, profit excluding investment costs will be a more realistic number of your profit after the first year.") -> Mark; this a rough estimate, with assumtions like; no building costs (A), no substrate costs (E), 7DOL is bought (D), and no employee costs (F). Adjust default values (under details).* Since investment cost will only be a cost the first year, profit excluding investment costs will be a more realistic number of your profit after the first year.
C49: Profit after one year | E49: ='Welcome!'!I29 -> EUR | F49: Details
C50: A:B | D50: Investment Costs | E50: =-'GO. Investment Costs'!I40 -> -238.7
C51: C | D51: Wear and Tear Cost | E51: =-'GO. Investment Costs'!I50 -> -60.04285714
C52: D:G | D52: Operating Costs | E52: =-'GO. Operating Costs'!G52 -> -111.4779091
C53: J:K | D53: Saved Costs | E53: ='GO. Revenue'!G55 -> 735.248878
D54: Profit including investment costs | E54: =SUM(E50:E53) -> 325.0281118
D55: Profit excluding investment costs* | E55: =SUM(E51:E53) -> 563.7281118
C56: =IF(AND('GO. Operating Costs'!G39=0, 'GO. Investment Costs'!I13=0, 'GO. Operating Costs'!G29=0), "Mark; this is a rough estimate, with assumptions like; no building costs (A), no substrate costs (E), 7DOL is bought (D), and no employee costs (F). Adjust default values (under details)."&"* Since investment cost will only be a cost the first year, profit excluding investment costs will be a more realistic number of your profit after the first year.", "Adjust values under details. * Since investment cost will only be a cost the first year, profit excluding investment costs will be a more realistic number of your profit after the first year.") -> Mark; this is a rough estimate, with assumptions like; no building costs (A), no substrate costs (E), 7DOL is bought (D), and no employee costs (F). Adjust default values (under details).* Since investment cost will only be a cost the first year, profit excluding investment costs will be a more realistic number of your profit after the first year.
D59: Calculation for BSF performance and Recieved Products
C60: A | D60: Preformans indicators | E60: per week | F60: per week
C61: 1 | D61: Treatment | E61: From SIMBA guide | F61: Use your own values
C62: 1.1 | D62: # 7-DOL/ kg substrate | E62: =1200 -> 1200 | F62: =E62 -> 1200
C63: 1.2 | D63: #7-DOL needed per week | E63: =F19*E62 -> 60000 | F63: =F62*F19 -> 60000
C64: 1.3 | D64: # 7-DOL equals 1 gram | E64: 286 | F64: =E64 -> 286
C65: 1.4 | D65: gram 7-DOL / kg substrate | E65: =E62/E64 -> 4.195804196 | F65: =IFERROR(F62/F64,0) -> 4.195804196
C66: 1.5 | D66: gram 7-DOL needed per week | E66: =E65*F19 -> 209.7902098 | F66: =F65*F19 -> 209.7902098
C67: 2 | D67: Products | E67: From literature | F67: Use your own values
C68: 2.1 | D68: Bioconversion Rate (%DM): Larvae³ | E68: =IF(F22=100%,E69,(E69*F22)+(E70*F23)+(E71*F24)) -> 0.18886 | F68: =E68 -> 0.18886
D69: =" Bioconversion rate "&E22 &" " -> Bioconversion rate Food waste | E69: =VLOOKUP(E22,Substrate[],2,0) -> 0.18886 | F69: -
D70: =" Bioconversion rate "&E23&"" -> Bioconversion rate | E70: =VLOOKUP(E23,Substrate[],2,0) ->  | F70: -
D71: =" Bioconversion rate "&E24&"" -> Bioconversion rate | E71: =IFERROR(VLOOKUP(E24,Substrate[],2,0),"0") -> 0 | F71: -
C72: 2.2 | D72: Product loss rate | E72: 0.15 | F72: =E72 -> 0.15
C73: 2.3 | D73: kg larvae per week | E73: =F19*E68*(1-E72) -> 8.02655 | F73: =F68*F19*(1-F72) -> 8.02655
C74: 2.4 | D74: Bioconversion Rate (%DM): Frass³ | E74: =IF(F22=100%,E75,(E75*F22)+(E76*F23)+(E77*F24)) -> 0.42245 | F74: =E74 -> 0.42245
D75: =" Bioconversion rate "&E22&"" -> Bioconversion rate Food waste | E75: =VLOOKUP(E22,Substrate[],3,0) -> 0.42245 | F75: -
D76: =" Bioconversion rate "&E23&"" -> Bioconversion rate | E76: =VLOOKUP(E23,Substrate[],3,0) ->  | F76: -
D77: =" Bioconversion rate "&E24&"" -> Bioconversion rate | E77: =IFERROR(VLOOKUP(E24,Substrate[],3,0),"0") -> 0 | F77: -
C78: 2.4 | D78: kg frass per week | E78: =F19*E74 -> 21.1225 | F78: =F74*F19 -> 21.1225
C79: 3. Reusser, M., Peguero, D., Studach, C., & Zurbrügg, C. (2024). BSFL Substrate Navigator [Windows 11]. Eawag: Swiss Federal Institute of Aquatic Science and Technology. Retrieved on July 28, 2025, from
C80: https://bsfl-substrate-navigator.onrender.com/
C83: 1. Diener, S., Dortmans, B,. Peguero, D., & Zurbrügg, C. (2025) SIMPLIFIED BLACK SOLDIER FLY APPROACH (SIMBA) – GROW-OUT UNIT: STANDARD OPERATIONS PROCEDURE

Sheet GO. Investment Costs
C3: Investment Costs | G3: Total: | H3: =I40 -> 238.7 | I3: =H9 -> EUR
C5: Investment costs refer to the initial one-time expenditure needed to set up the facility. All yellow cells show a default value. These default values are based on the values from the SIMBA Growout Guide¹. If you have data you can change the default values that more accurately represent your facility.
C7: Default value - Optional to change | F7: Select option
C9: A | D9: Building and Civil Works* | F9: Amount | H9: ='Welcome!'!I29 -> EUR | I9: Total | J9: Lifetime (years) | K9: ='Welcome!'!I29&" / year" -> EUR / year
C10: 1 | D10: Building construction and materials | F10: 1 | H10: 0 | I10: =F10*H10 -> 0 | J10: 30 | K10: =IFERROR(I10/J10,0) -> 0
C11: 2 | D11: Labor Cost | F11: 1 | H11: 0 | I11: =F11*H11 -> 0 | J11: - | K11: =IFERROR(I11/J11,0) -> 0
C12: 3 | D12: Other | F12: 1 | H12: 0 | I12: =F12*H12 -> 0 | J12: 30 | K12: 0
C13: A | D13: Total building and Civil Workers | I13: =SUM(I10:I12) -> 0 | K13: =SUM(K10:K12) -> 0
C14: ="*For treating "&'Growout (GO)'!F19&" kg waste, the SIMBA guide estimate that you need a "&(150/250*'Growout (GO)'!F19)&" m² roofed space. If you don' t have this space avaliable please estimate the costs." -> *For treating 50 kg waste, the SIMBA guide estimate that you need a 30 m² roofed space. If you don' t have this space avaliable please estimate the costs.
C17: B | D17: Equipment | E17: Your dimensions | F17: Amount | G17: Your amount | H17: ='Welcome!'!I29&" / unit" -> EUR / unit | I17: Total | J17: Lifetime (years) | K17: ='Welcome!'!I29&" / year" -> EUR / year
C18: 1 | D18: Pre-treatment
C19: 1.1 | D19: Bulk scale | E19: - | F19: =ROUNDUP('Growout (GO)'!E63/10000000*1,0) -> 1 | G19: =F19 -> 1 | H19: =74.5*'Welcome!'!I30 -> 74.5 | I19: =G19*H19 -> 74.5 | J19: 7 | K19: =IFERROR(I19/J19,0) -> 10.64285714
C20: 1.2 | D20: Shovel/rake | E20: - | F20: =ROUNDUP('Growout (GO)'!E62/10000000*1,0) -> 1 | G20: =F20 -> 1 | H20: =40*'Welcome!'!I30 -> 40 | I20: =G20*H20 -> 40 | J20: 5 | K20: =IFERROR(I20/J20,0) -> 8
C21: 1.3 | D21: Grinder* | E21: - | F21: 0 | G21: 0 | H21: =80*'Welcome!'!I30 -> 80 | I21: =G21*H21 -> 0 | J21: =10 -> 10 | K21: 0
C22: 1.4 | D22: Storage bucket (60L) | E22: 60 | F22: =MAX(ROUND('Growout (GO)'!F19/E22*1,0),1) -> 1 | G22: 1 | H22: =20*'Welcome!'!I30 -> 20 | I22: 20 | J22: 3 | K22: 6.666666667
C23: 2 | D23: Grow-out
C24: 2.1 | D24: Incubation container (2000cm²) | E24: 600 | F24: =MAX(ROUND('Growout (GO)'!F63/(E24*30)*1,0),1) -> 3 | G24: =F24 -> 3 | H24: =1.8*'Welcome!'!I30 -> 1.8 | I24: =G24*H24 -> 5.4 | J24: 3 | K24: =IFERROR(I24/J24,0) -> 1.8
C25: 2.2 | D25: Growout container (2400cm²) | E25: 2400 | F25: =MAX(ROUND('Growout (GO)'!F63/(E25*6),0)*4,1) -> 16 | G25: =F25 -> 16 | H25: =1.8*'Welcome!'!I30 -> 1.8 | I25: =G25*H25 -> 28.8 | J25: 3 | K25: =IFERROR(I25/J25,0) -> 9.6
C26: 2.3 | D26: Bioponds (9000cm²) | E26: - | F26: 0 | G26: 0 | H26: =300*'Welcome!'!I30 -> 300 | I26: 0
C27: 3 | D27: Harvesting
C28: 3.1 | D28: Sieve | E28: - | F28: =ROUNDUP('Growout (GO)'!E78/6300*1,0) -> 1 | G28: =F28 -> 1 | H28: =50*'Welcome!'!I30 -> 50 | I28: =G28*H28 -> 50 | J28: 3 | K28: =IFERROR(I28/J28,0) -> 16.66666667
C29: 3.2 | D29: Storage bucket (60L) | E29: 60 | F29: =MAX(ROUND('Growout (GO)'!E78/E29*1,0),1) -> 1 | G29: =F29 -> 1 | H29: =20*'Welcome!'!I30 -> 20 | I29: =G29*H29 -> 20 | J29: 3 | K29: =IFERROR(I29/J29,0) -> 6.666666667
C30: 4 | D30: Post-treatment **
C31: 4.1 | D31: Hot-air oven | E31: - | F31: 0 | G31: =F31 -> 0 | H31: 0 | I31: =G31*H31 -> 0 | J31: 10 | K31: =IFERROR(I31/J31,0) -> 0
C32: 4.2 | D32: Other | E32: - | F32: 0 | G32: =F32 -> 0 | H32: 0 | I32: =G32*H32 -> 0 | J32: 10 | K32: =IFERROR(I32/J32,0) -> 0
C33: 5 | D33: General task
C34: 5.1 | D34: Cleaning equipment (mopping cloth, broom, sanitizer, detergent etc. | E34: - | F34: 1 | G34: =F34 -> 1 | H34: 0 | I34: =G34*H34 -> 0 | J34: 2 | K34: =IFERROR(I34/J34,0) -> 0
C35: 5.2 | D35: Office equipment and material | E35: - | F35: 1 | G35: =F35 -> 1 | H35: 0 | I35: =G35*H35 -> 0 | J35: 2 | K35: 0
C36: 5.3 | D36: Other (dust bin, mug, bucket, etc) | E36: - | F36: 1 | G36: =F36 -> 1 | H36: 0 | I36: 0 | J36: 2 | K36: 0
C37: B | D37: Total Equipment | I37: =SUM(I19:I34) -> 238.7 | K37: =SUM(K19:K34) -> 60.04285714
C38: ** Not required to operate a SIMBA growout facility.
C40: A:B | D40: Total Investment Costs | I40: =I37+I13 -> 238.7 | K40: =K13+K37 -> 60.04285714
C43: Wear and Tear Cost | G43: Total: | H43: =I50 -> 60.04285714 | I43: ='Welcome!'!I29&" / year" -> EUR / year
C44: This cost is a depreciation cost which accounts for the wear and tear (lifetime) of the investment products. All yellow cells show a default value. To make the model more accurate to your case, pease change the default values that do not apply to your facility.Click on "show calculations" below to see further details.
D47: Wear and tear | I47: ='Welcome!'!I29&" / year" -> EUR / year
D48: Building | I48: =K13 -> 0
D49: Equipment | I49: =K37 -> 60.04285714
C50: C | D50: Total Wear and Tear Cost per year* | I50: =K40+K13 -> 60.04285714

Sheet GO. Operating Costs
C4: Operating Cost | E4: Total: | F4: =G52 -> 111.4779091 | G4: ='Welcome!'!I29&" /year" -> EUR /year
C6: Operating costs are all your weekly expenses required to operate a Grow-Out Unit. All yellow cells show a default value. These default values are calculated based on the values from the SIMBA Grow-Out Guide². You can change the default values to represent your facility more accurately.
C9: If you have more accurate data, change the default values in the yellow cells to represent your facility.
C11: D | D11: 7-DOL Cost* | F11: Weekly | G11: Yearly
C12: 1 | D12: gram 7-DOL | F12: ='Growout (GO)'!E65*F18 -> 209.7902098 | G12: ='Growout (GO)'!E65*G18 -> 10909.09091
C13: 2 | D13: ='Welcome!'!I29&" / gram 7-DOL " -> EUR / gram 7-DOL | E13: =0.01*'Welcome!'!I30 -> 0.01
C14: D | D14: Total cost 7-DOL | F14: =E13*F12 -> 2.097902098 | G14: =E13*G12 -> 109.0909091
C15: * If you dont buy 7-DOL / have your own reproduction unit.: set the price to 0.
C17: E | D17: =IF(G29=0,"Waste Substrate Cost*","Waste Substrate Cost") -> Waste Substrate Cost* | F17: Weekly | G17: Yearly
D18: Kg Waste Substrate treated | F18: ='Growout (GO)'!F19 -> 50 | G18: =F18*52 -> 2600
C19: 1 | D19: Waste substrate in kg
C20: 1.1 | D20: ='Growout (GO)'!E22 -> Food waste | E20: ='Growout (GO)'!F22 -> 1 | F20: =E20*F18 -> 50 | G20: =E20*G18 -> 2600
C21: 1.2 | D21: =IF('Growout (GO)'!E23="","-",'Growout (GO)'!$E$23) -> - | E21: ='Growout (GO)'!F23 -> 0 | F21: =E21*F18 -> 0 | G21: =E21*G18 -> 0
C22: 1.3 | D22: =IF('Growout (GO)'!E24="","-",'Growout (GO)'!$E$24) -> - | E22: ='Growout (GO)'!F24 -> 0 | F22: =F18*E22 -> 0 | G22: =E22*G18 -> 0
C23: 1.4 | D23: Additives (e.g. saw dust or rice husk) | E23: ="- " -> - | F23: 0 | G23: =F23*52 -> 0
C24: 2 | D24: Waste substrate cost | E24: ='Welcome!'!I29&" / kg" -> EUR / kg
C25: 2.1 | D25: =D20 -> Food waste | E25: 0 | F25: =E25*F20 -> 0 | G25: =E25*G20 -> 0
C26: 2.2 | D26: =IF('Growout (GO)'!E23="","-",'Growout (GO)'!$E$23) -> - | E26: 0 | F26: =E26*F21 -> 0 | G26: =E26*G21 -> 0
C27: 2.3 | D27: =IF('Growout (GO)'!E24="","-",'Growout (GO)'!$E$24) -> - | E27: 0 | F27: =E27*F22 -> 0 | G27: =E27*G22 -> 0
C28: 2.4 | D28: Additives (e.g. saw dust or rice husk) | E28: 0 | F28: =E28*F23 -> 0 | G28: =E28*G23 -> 0
C29: E | D29: Total cost waste substrate | F29: =SUM(F25:F28) -> 0 | G29: =SUM(G25:G28) -> 0
C30: =IF(G29=0,"*This model assums that you are using your own substrate (cost = 0). If you buy substrate, please enter price per kilo.","") -> *This model assums that you are using your own substrate (cost = 0). If you buy substrate, please enter price per kilo.
C33: F | D33: =IF(G39=0,"Labor Cost *","Labor Cost") -> Labor Cost * | F33: Weekly | G33: Yearly
D34: Number of employees | E34: 0
D35: Salary per h | E35: 0
D36: Working hours | F36: 16 | G36: =F36*52 -> 832
C37: 1 | D37: Salary | F37: =F36*E34*E35 -> 0 | G37: =E34*G36*E35 -> 0
C38: 2 | D38: Other | F38: 0 | G38: =F38*52 -> 0
C39: F | D39: Total labor cost | F39: =SUM(F37:F38) -> 0 | G39: =SUM(G37:G38) -> 0
C40: =IF(G39=0,"*This model assumes 0 labor cost, if you are hiring, adjust the yellow cells accordingly."," ") -> *This model assumes 0 labor cost, if you are hiring, adjust the yellow cells accordingly.
C42: G | D42: Other Cost | F42: Weekly | G42: Yearly
C43: 1 | D43: Repairs and Maintenance* | F43: =G43/52 -> 0.04590384615 | G43: =1%*('GO. Investment Costs'!I40) -> 2.387
C44: 2 | D44: Utilities (Water, Electricity, Fuel) | F44: =G44/52 -> 0 | G44: 0
C45: 3 | D45: Transportation Costs | F45: 0 | G45: 0
C46: 4 | D46: Marketing Cost | F46: =G46/52 -> 0 | G46: 0
C47: 5 | D47: Consumables | F47: 0 | G47: 0
C48: 6 | D48: Other | F48: 0 | G48: 0
C49: G | D49: Total other cost | F49: =SUM(F43:F48) -> 0.04590384615 | G49: =SUM(G43:G48) -> 2.387
C50: *The default vaule is calculated as 1% of the investments cost
F51: Weekly | G51: Yearly
C52: D:G | D52: Total Operating Costs | F52: =F29+F14+F39+F49 -> 2.143805944 | G52: =G29+G14+G39+G49 -> 111.4779091

Sheet GO. Revenue
C3: Sale Revenue | E3: Total: | F3: =G27 -> 0 | G3: ='Welcome!'!I29&"/ year" -> EUR/ year
C5: ="Sales revenue shows the income you will generate from the grow-out unit selling fresh BSF larvae and/or frass. Adjust the sales prices ("&'Welcome!'!J30&" /kg) in the yellow cells to make the calculation more accurate for your case." -> Sales revenue shows the income you will generate from the grow-out unit selling fresh BSF larvae and/or frass. Adjust the sales prices (EUR /kg) in the yellow cells to make the calculation more accurate for your case.
C8: If you have more accurate data, change the default values in the yellow cells to represent your facility.
C10: H | D10: Fresh BSF Larvae | F10: Weekly | G10: Yearly
C11: 1 | D11: Larvae in kg | E11: Weekly (default value)
C12: 1.1 | D12: Fresh larvae sold | E12: =IF('Growout (GO)'!E31="Yes",'Growout (GO)'!E35,0) -> 0 | F12: =E12 -> 0 | G12: =F12*52 -> 0
C13: 1.2 | D13: Dried larvae sold | E13: 0 | F13: 0 | G13: =F13*52 -> 0
C14: 2 | D14: Revenue larvae | E14: ='Welcome!'!I29&" / kg " -> EUR / kg
C15: 2.1 | D15: Fresh larvae | E15: =1.5*'Welcome!'!I30 -> 1.5 | F15: =E15*F12 -> 0 | G15: =E15*G12 -> 0
C16: 2.2 | D16: Dried larvae | E16: =1.02*'Welcome!'!I30 -> 1.02 | F16: =E16*F13 -> 0 | G16: =E16*G13 -> 0
C17: H | D17: Total Revenue: BSF Larvae | F17: =SUM(F15:F16) -> 0 | G17: =SUM(G15:G16) -> 0
C19: I | D19: Frass / Organic Fertilizer | F19: Weekly | G19: Yearly
C20: 1 | D20: Frass in kg | E20: Weekly (default value)
D21: kg frass sold | E21: =IF('Growout (GO)'!E31="Yes",'Growout (GO)'!E36,0) -> 0 | F21: =E21 -> 0 | G21: =F21*52 -> 0
C22: 2 | D22: Sale price frass | E22: ='Welcome!'!I29&" / kg " -> EUR / kg
D23: Frass | E23: =0.24*'Welcome!'!I30 -> 0.24
C24: I | D24: Total Revenue: Frass | F24: =E23*F21 -> 0 | G24: =E23*G21 -> 0
F26: Weekly | G26: Yearly
C27: H:I | D27: Total Sales Revenue | F27: =F17+F24 -> 0 | G27: =G17+G24 -> 0
C30: Saved cost | E30: Total: | F30: =G55 -> 735.248878 | G30: ='Welcome!'!I29&"/ year" -> EUR/ year
C32: Saved Cost show the amount you can save by investing in a BSF Growout Unit. For instance, if you now are saving money on feed for your animals since you have started to use BSF larvae, then this is a saved cost. Fill in or adjust the yellow fields to improve accuracy based on your specific situation. *The default values assume a 1:1 ratio between BSF feed and conventional feed, and a 1:1 ratio between frass and fertilizer. If this is not your case please also enter the estimated amount you expect to save weekly on conventional feed and fertilizer.
C36: Change the yellow cells that do not apply to your facility
C38: J | D38: Conventional feed | F38: Weekly | G38: Yearly
C39: 1 | D39: Conventional feed in kg | E39: Weekly (default value)
C40: 1.1 | D40: Conventional feed actually saved | E40: =IF('Growout (GO)'!E31="yes",'Growout (GO)'!F35,'Growout (GO)'!F73) -> 8.02655 | F40: =E40 -> 8.02655 | G40: =F40*52 -> 417.3806
C41: 2 | D41: Conventional feed cost | E41: ='Welcome!'!I29&" / kg" -> EUR / kg
C42: 2.1 | D42: Conventional feed cost | E42: =1.13*'Welcome!'!I30 -> 1.13 | F42: =F40*E42 -> 9.0700015 | G42: =G40*E42 -> 471.640078
C43: 2.2 | D43: Transport cost | E43: - | F43: 0 | G43: =F43*52 -> 0
C44: J | D44: Total Saved cost: Conventional feed | F44: =F42+F43 -> 9.0700015 | G44: =G42+G43 -> 471.640078
C46: K | D46: Conventional Fertilizer | F46: Weekly | G46: Yearly
C47: 1 | D47: Conventional Fertilizer in kg | E47: Weekly (default value)
C48: 1.1 | D48: Fertilizer actually saved | E48: =IF('Growout (GO)'!E31="Yes",'Growout (GO)'!F36,'Growout (GO)'!F78) -> 21.1225 | F48: =E48 -> 21.1225 | G48: =F48*52 -> 1098.37
C49: 2 | D49: Conventional Fertilizer cost | E49: ='Welcome!'!I29&" / kg" -> EUR / kg
C50: 2.2 | D50: Fertilizer | E50: =0.24*'Welcome!'!I30 -> 0.24 | F50: =F48*E50 -> 5.0694 | G50: =G48*E50 -> 263.6088
C51: 2.3 | D51: Transport cost | E51: - | F51: 0 | G51: =F51*52 -> 0
C52: K | D52: Total Saved cost: Conventional Fertilizer | F52: =F50+F51 -> 5.0694 | G52: =G50+G51 -> 263.6088
F54: Weekly | G54: Yearly
C55: J:K | D55: Total Saved cost | F55: =F52+F44 -> 14.1394015 | G55: =G52+G44 -> 735.248878
C59: See combined results of your Reproduction and Grow-Out unit:

Sheet GO & R results
C3: Overview of Combined Unit
C4: This page presents the overall costs amd revenues and the resulting profit from your Reproduction and Growout unit.
E5: ='Welcome!'!J30 -> EUR
C6: First year profit when including first year investment costs | E6: =E42 -> -786.9940428
C7: Profit first year (excluding investment *) | E7: =E43 -> 1191.975957
C8: *Annual depreciation on investments included.
C10: Cost and Revenue ; Reproduction Unit | E10: ='Welcome!'!J30 &" after one year" -> EUR after one year
D11: Investment Costs | E11: ='Reproduction(R)'!E56 -> -1740.27
D12: Wear and Tear Cost | E12: ='Reproduction(R)'!E57 -> -149.404
D13: Operating Costs | E13: ='Reproduction(R)'!E58 -> -17.4027
D14: Sale Revenue | E14: ='Reproduction(R)'!E59 -> 795.0545455
C17: Cost and Revenue ; Growout Unit | E17: ='Welcome!'!J30 &" after one year" -> EUR after one year
D18: Investment Costs | E18: ='Growout (GO)'!E40 -> -238.7
D19: Wear and Tear Cost | E19: ='Growout (GO)'!E41 -> -60.04285714
D20: Operating Costs | E20: ='Growout (GO)'!E42 -> -111.4779091
D21: Sale Revenue | E21: ='Growout (GO)'!E43 -> 0
D22: Saved Costs | E22: ='Growout (GO)'!E44 -> 735.248878
C25: Profit after one year | E25: ='Welcome!'!J30 &" after one year" -> EUR after one year
C26: 1 | D26: Total Investment Cost | E26: =SUM(E11,E18) -> -1978.97
C27: 1.1 | D27: Building and Civil workers | E27: ='R. Investment Costs'!H30+'GO. Investment Costs'!I13 -> 980.65
C28: 1.2 | D28: Equipment | E28: ='R. Investment Costs'!H62+'GO. Investment Costs'!I37 -> 998.32
C29: 2 | D29: Total Wear and Tear Cost | E29: =SUM(E12,E19) -> -209.4468571
C30: 2.1 | D30: Wear and Tear Building | E30: ='R. Investment Costs'!H73+'GO. Investment Costs'!I48 -> 31.95066667
C31: 2.2 | D31: Wear and Tear Equipment | E31: ='R. Investment Costs'!H74+'GO. Investment Costs'!I49 -> 177.4961905
C32: 3 | D32: Total Operating Cost | E32: =SUM(E13,E20) -> -128.8806091
C33: 3.1 | D33: Waste substrate cost | E33: ='R. Operating Costs'!G20+'GO. Operating Costs'!G29 -> 0
C34: 3.2 | D34: Labor cost | E34: ='R. Operating Costs'!G29+'GO. Operating Costs'!G39 -> 0
C35: 3.3 | D35: Other cost | E35: ='R. Operating Costs'!G39+'GO. Operating Costs'!G49 -> 19.7897
C36: 4 | D36: Total Revenue | E36: =SUM(E14,E21) -> 795.0545455
C37: 4.1 | D37: Fresh BSF larvae | E37: ='GO. Revenue'!G17 -> 0
C38: 4.2 | D38: Frass | E38: ='R. Revenue'!G25+'GO. Revenue'!G24 -> 249.6
C39: 5 | D39: Total Saved cost | E39: =E22 -> 735.248878
C40: 5.1 | D40: Conventional Feed | E40: ='GO. Revenue'!G44 -> 471.640078
C41: 5.2 | D41: Conventional Fertilizer | E41: ='GO. Revenue'!G52 -> 263.6088
D42: Profit including investment costs | E42: =SUM(E26,E29,E32,E36,E39) -> -786.9940428
D43: Profit excluding investment costs | E43: =SUM(E29,E32,E36,E39) -> 1191.975957

Sheet Currency data (hidden)
A1: Country | B1: Currency Code | C1: Currency Name
A2: Algeria | B2: DZD | C2: Algerian Dinar
A3: Angola | B3: AOA | C3: Angolan Kwanza
A4: Benin | B4: XOF | C4: West African CFA Franc
A5: Botswana | B5: BWP | C5: Botswana Pula
A6: Burkina Faso | B6: XOF | C6: West African CFA Franc
A7: Burundi | B7: BIF | C7: Burundian Franc
A8: Cameroon | B8: XAF | C8: Central African CFA Franc
A9: Cape Verde | B9: CVE | C9: Cape Verdean Escudo
A10: Central African Republic | B10: XAF | C10: Central African CFA Franc
A11: Chad | B11: XAF | C11: Central African CFA Franc
A12: Comoros | B12: KMF | C12: Comorian Franc
A13: Côte d'Ivoire | B13: XOF | C13: West African CFA Franc
A14: Democratic Republic of the Congo | B14: CDF | C14: Congolese Franc
A15: Djibouti | B15: DJF | C15: Djiboutian Franc
A16: Egypt | B16: EGP | C16: Egyptian Pound
A17: Equatorial Guinea | B17: XAF | C17: Central African CFA Franc
A18: Eritrea | B18: ERN | C18: Eritrean Nakfa
A19: Eswatini | B19: SZL | C19: Swazi Lilangeni
A20: Ethiopia | B20: ETB | C20: Ethiopian Birr
A21: Gabon | B21: XAF | C21: Central African CFA Franc
A22: Gambia | B22: GMD | C22: Gambian Dalasi
A23: Ghana | B23: GHS | C23: Ghanaian Cedi
A24: Guinea | B24: GNF | C24: Guinean Franc
A25: Guinea-Bissau | B25: XOF | C25: West African CFA Franc
A26: Kenya | B26: KES | C26: Kenyan Shilling
A27: Lesotho | B27: LSL | C27: Lesotho Loti
A28: Liberia | B28: LRD | C28: Liberian Dollar
A29: Libya | B29: LYD | C29: Libyan Dinar
A30: Madagascar | B30: MGA | C30: Malagasy Ariary
A31: Malawi | B31: MWK | C31: Malawian Kwacha
A32: Mali | B32: XOF | C32: West African CFA Franc
A33: Mauritania | B33: MRU | C33: Mauritanian Ouguiya
A34: Mauritius | B34: MUR | C34: Mauritian Rupee
A35: Morocco | B35: MAD | C35: Moroccan Dirham
A36: Mozambique | B36: MZN | C36: Mozambican Metical
A37: Namibia | B37: NAD | C37: Namibian Dollar
A38: Niger | B38: XOF | C38: West African CFA Franc
A39: Nigeria | B39: NGN | C39: Nigerian Naira
A40: Republic of the Congo | B40: XAF | C40: Central African CFA Franc
A41: Rwanda | B41: RWF | C41: Rwandan Franc
A42: São Tomé and Príncipe | B42: STN | C42: São Tomé and Príncipe Dobra
A43: Senegal | B43: XOF | C43: West African CFA Franc
A44: Seychelles | B44: SCR | C44: Seychellois Rupee
A45: Sierra Leone | B45: SLE | C45: Sierra Leonean Leone
A46: Somalia | B46: SOS | C46: Somali Shilling
A47: South Africa | B47: ZAR | C47: South African Rand
A48: South Sudan | B48: SSP | C48: South Sudanese Pound
A49: Sudan | B49: SDG | C49: Sudanese Pound
A50: Tanzania | B50: TZS | C50: Tanzanian Shilling
A51: Togo | B51: XOF | C51: West African CFA Franc
A52: Tunisia | B52: TND | C52: Tunisian Dinar
A53: Uganda | B53: UGX | C53: Ugandan Shilling
A54: Zambia | B54: ZMW | C54: Zambian Kwacha
A55: Zimbabwe | B55: ZWL | C55: Zimbabwean Dollar
A56: Afghanistan | B56: AFN | C56: Afghan Afghani
A57: Armenia | B57: AMD | C57: Armenian Dram
A58: Azerbaijan | B58: AZN | C58: Azerbaijani Manat
A59: Bahrain | B59: BHD | C59: Bahraini Dinar
A60: Bangladesh | B60: BDT | C60: Bangladeshi Taka
A61: Bhutan | B61: BTN | C61: Bhutanese Ngultrum
A62: Brunei | B62: BND | C62: Brunei Dollar
A63: Cambodia | B63: KHR | C63: Cambodian Riel
A64: China | B64: CNY | C64: Chinese Yuan
A65: Cyprus | B65: EUR | C65: Euro
A66: Georgia | B66: GEL | C66: Georgian Lari
A67: India | B67: INR | C67: Indian Rupee
A68: Indonesia | B68: IDR | C68: Indonesian Rupiah
A69: Iran | B69: IRR | C69: Iranian Rial
A70: Iraq | B70: IQD | C70: Iraqi Dinar
A71: Israel | B71: ILS | C71: Israeli New Shekel
A72: Japan | B72: JPY | C72: Japanese Yen
A73: Jordan | B73: JOD | C73: Jordanian Dinar
A74: Kazakhstan | B74: KZT | C74: Kazakhstani Tenge
A75: Kuwait | B75: KWD | C75: Kuwaiti Dinar
A76: Kyrgyzstan | B76: KGS | C76: Kyrgyzstani Som
A77: Laos | B77: LAK | C77: Lao Kip
A78: Lebanon | B78: LBP | C78: Lebanese Pound
A79: Malaysia | B79: MYR | C79: Malaysian Ringgit
A80: Maldives | B80: MVR | C80: Maldivian Rufiyaa
A81: Mongolia | B81: MNT | C81: Mongolian Tugrik
A82: Myanmar | B82: MMK | C82: Myanmar Kyat
A83: Nepal | B83: NPR | C83: Nepalese Rupee
A84: North Korea | B84: KPW | C84: North Korean Won
A85: Oman | B85: OMR | C85: Omani Rial
A86: Pakistan | B86: PKR | C86: Pakistani Rupee
A87: Palestine | B87: ILS | C87: Israeli New Shekel
A88: Philippines | B88: PHP | C88: Philippine Peso
A89: Qatar | B89: QAR | C89: Qatari Riyal
A90: Russia | B90: RUB | C90: Russian Ruble
A91: Saudi Arabia | B91: SAR | C91: Saudi Riyal
A92: Singapore | B92: SGD | C92: Singapore Dollar
A93: South Korea | B93: KRW | C93: South Korean Won
A94: Sri Lanka | B94: LKR | C94: Sri Lankan Rupee
A95: Syria | B95: SYP | C95: Syrian Pound
A96: Tajikistan | B96: TJS | C96: Tajikistani Somoni
A97: Thailand | B97: THB | C97: Thai Baht
A98: Timor-Leste | B98: USD | C98: US Dollar
A99: Turkey | B99: TRY | C99: Turkish Lira
A100: Turkmenistan | B100: TMT | C100: Turkmenistani Manat
A101: United Arab Emirates | B101: AED | C101: UAE Dirham
A102: Uzbekistan | B102: UZS | C102: Uzbekistani Som
A103: Vietnam | B103: VND | C103: Vietnamese Dong
A104: Yemen | B104: YER | C104: Yemeni Rial
A105: Albania | B105: ALL | C105: Albanian Lek
A106: Andorra | B106: EUR | C106: Euro
A107: Austria | B107: EUR | C107: Euro
A108: Belarus | B108: BYN | C108: Belarusian Ruble
A109: Belgium | B109: EUR | C109: Euro
A110: Bosnia and Herzegovina | B110: BAM | C110: Bosnia and Herzegovina Convertible Mark
A111: Bulgaria | B111: BGN | C111: Bulgarian Lev
A112: Croatia | B112: EUR | C112: Euro
A113: Cyprus | B113: EUR | C113: Euro
A114: Czech Republic | B114: CZK | C114: Czech Koruna
A115: Denmark | B115: DKK | C115: Danish Krone
A116: Estonia | B116: EUR | C116: Euro
A117: Finland | B117: EUR | C117: Euro
A118: France | B118: EUR | C118: Euro
A119: Georgia | B119: GEL | C119: Georgian Lari
A120: Germany | B120: EUR | C120: Euro
A121: Greece | B121: EUR | C121: Euro
A122: Hungary | B122: HUF | C122: Hungarian Forint
A123: Iceland | B123: ISK | C123: Icelandic Króna
A124: Ireland | B124: EUR | C124: Euro
A125: Italy | B125: EUR | C125: Euro
A126: Kosovo | B126: EUR | C126: Euro
A127: Latvia | B127: EUR | C127: Euro
A128: Liechtenstein | B128: CHF | C128: Swiss Franc
A129: Lithuania | B129: EUR | C129: Euro
A130: Luxembourg | B130: EUR | C130: Euro
A131: Malta | B131: EUR | C131: Euro
A132: Moldova | B132: MDL | C132: Moldovan Leu
A133: Monaco | B133: EUR | C133: Euro
A134: Montenegro | B134: EUR | C134: Euro
A135: Netherlands | B135: EUR | C135: Euro
A136: North Macedonia | B136: MKD | C136: Macedonian Denar
A137: Norway | B137: NOK | C137: Norwegian Krone
A138: Poland | B138: PLN | C138: Polish Złoty
A139: Portugal | B139: EUR | C139: Euro
A140: Romania | B140: RON | C140: Romanian Leu
A141: Russia | B141: RUB | C141: Russian Ruble
A142: San Marino | B142: EUR | C142: Euro
A143: Serbia | B143: RSD | C143: Serbian Dinar
A144: Slovakia | B144: EUR | C144: Euro
A145: Slovenia | B145: EUR | C145: Euro
A146: Spain | B146: EUR | C146: Euro
A147: Sweden | B147: SEK | C147: Swedish Krona
A148: Switzerland | B148: CHF | C148: Swiss Franc
A149: Turkey | B149: TRY | C149: Turkish Lira
A150: Ukraine | B150: UAH | C150: Ukrainian Hryvnia
A151: United Kingdom | B151: GBP | C151: British Pound Sterling
A152: Vatican City | B152: EUR | C152: Euro
A153: Antigua and Barbuda | B153: XCD | C153: East Caribbean Dollar
A154: Bahamas | B154: BSD | C154: Bahamian Dollar
A155: Barbados | B155: BBD | C155: Barbadian Dollar
A156: Belize | B156: BZD | C156: Belize Dollar
A157: Canada | B157: CAD | C157: Canadian Dollar
A158: Costa Rica | B158: CRC | C158: Costa Rican Colón
A159: Cuba | B159: CUP | C159: Cuban Peso
A160: Dominica | B160: XCD | C160: East Caribbean Dollar
A161: Dominican Republic | B161: DOP | C161: Dominican Peso
A162: El Salvador | B162: USD | C162: US Dollar
A163: Grenada | B163: XCD | C163: East Caribbean Dollar
A164: Guatemala | B164: GTQ | C164: Guatemalan Quetzal
A165: Haiti | B165: HTG | C165: Haitian Gourde
A166: Honduras | B166: HNL | C166: Honduran Lempira
A167: Jamaica | B167: JMD | C167: Jamaican Dollar
A168: Mexico | B168: MXN | C168: Mexican Peso
A169: Nicaragua | B169: NIO | C169: Nicaraguan Córdoba
A170: Panama | B170: PAB | C170: Panamanian Balboa
A171: Saint Kitts and Nevis | B171: XCD | C171: East Caribbean Dollar
A172: Saint Lucia | B172: XCD | C172: East Caribbean Dollar
A173: Saint Vincent and the Grenadines | B173: XCD | C173: East Caribbean Dollar
A174: Trinidad and Tobago | B174: TTD | C174: Trinidad and Tobago Dollar
A175: United States | B175: USD | C175: US Dollar
A176: Argentina | B176: ARS | C176: Argentine Peso
A177: Bolivia | B177: BOB | C177: Bolivian Boliviano
A178: Brazil | B178: BRL | C178: Brazilian Real
A179: Chile | B179: CLP | C179: Chilean Peso
A180: Colombia | B180: COP | C180: Colombian Peso
A181: Ecuador | B181: USD | C181: US Dollar
A182: French Guiana | B182: EUR | C182: Euro
A183: Guyana | B183: GYD | C183: Guyanese Dollar
A184: Paraguay | B184: PYG | C184: Paraguayan Guaraní
A185: Peru | B185: PEN | C185: Peruvian Sol
A186: Suriname | B186: SRD | C186: Surinamese Dollar
A187: Uruguay | B187: UYU | C187: Uruguayan Peso
A188: Venezuela | B188: VES | C188: Venezuelan Bolívar

Sheet Tables (hidden)
A1: Substrate data and tables
A2: Substrate | B2: Bioconvertion rate to larvae | C2: Bioconvention rate to frass | D2: Waste reduction | E2: Price | G2: Prosentage option | I2: Yes/no option | K2: Post prosessing | M2: Units
A3: Chicken feed | B3: 0.1902666667 | C3: =1-Substrate[[#This Row],[Waste reduction]] -> 0.2670666667 | D3: 0.7329333333 | G3: 0 | I3: Yes | K3: Microwave | M3: Reproduction Unit
A4: Chicken manure | B4: 0.07526666667 | C4: =1-Substrate[[#This Row],[Waste reduction]] -> 0.4948 | D4: 0.5052 | G4: 0.1 | I4: No | K4: Solar oven | M4: Grow-out Unit
A5: Cow manure | B5: 0.05565 | C5: =1-Substrate[[#This Row],[Waste reduction]] -> 0.6207 | D5: 0.3793 | G5: 0.2 | K5: Hot-air oven | M5: Both Reproduction and Grow-out Unit
A6: Faecal sludge | B6: 0.049 | C6: =1-Substrate[[#This Row],[Waste reduction]] -> 0.4932 | D6: 0.5068 | G6: 0.3 | K6: Other
A7: Food waste | B7: 0.18886 | C7: =1-Substrate[[#This Row],[Waste reduction]] -> 0.42245 | D7: 0.57755 | G7: 0.4
A8: Fruits | B8: 0.181 | C8: =1-Substrate[[#This Row],[Waste reduction]] -> 0.33035 | D8: 0.66965 | G8: 0.5
A9: Pig manure | B9: 0.09433333333 | C9: =1-Substrate[[#This Row],[Waste reduction]] -> 0.6258 | D9: 0.3742 | G9: 0.6
A10: Vegetable waste | B10: 0.2121333333 | C10: =1-Substrate[[#This Row],[Waste reduction]] -> 0.4991333333 | D10: 0.5008666667 | G10: 0.7
A11: Other | B11: 0.1 | C11: 0.3 | G11: 0.8
G12: 0.9
G13: 1
